bitfinex-derivatives/quotes_BTCF0:USTF0_20250827
["timestamp","ask_amount","ask_price","bid_price","bid_amount"]
[1756336135429,0.92384855,111490.0,111480.0,0.0224]
[1756336135630,0.92384855,111490.0,111480.0,0.02332]
[1756336135934,0.92384855,111490.0,111480.0,0.02092]
[1756336136734,0.92384855,111490.0,111480.0,0.002]
[1756336137437,0.6110223,111490.0,111480.0,0.0224]
[1756336137624,0.6110223,111490.0,111480.0,0.33522625]
[1756336137832,0.6110223,111490.0,111480.0,0.97591625]
[1756336138936,0.6120223,111490.0,111480.0,0.97491625]
[1756336139536,0.6130223,111490.0,111480.0,0.66109]
[1756336140233,0.4970823,111490.0,111480.0,1.06360635]
[1756336140442,0.5242323,111490.0,111480.0,0.97391625]
[1756336140735,0.5933423,111490.0,111480.0,1.06360635]
[1756336141333,0.6119023,111490.0,111480.0,0.97391625]
[1756336141928,0.6119023,111490.0,111480.0,1.80831625]
[1756336142733,0.5774623,111490.0,111480.0,1.80831625]
[1756336142934,0.4970823,111490.0,111480.0,1.89800635]
[1756336143332,0.0916823,111490.0,111480.0,2.2108326]
[1756336143531,0.0916823,111490.0,111480.0,1.89800635]
[1756336143927,0.091682,111490.0,111480.0,2.2108326]
[1756336144639,0.090682,111490.0,111480.0,2.2108326]
[1756336144841,0.001,111490.0,111480.0,2.2108326]
[1756336145039,0.0896798,111500.0,111490.0,0.089682]
[1756336145232,0.0896798,111500.0,111490.0,0.81455825]
[1756336145233,0.1130898,111500.0,111490.0,0.81455825]
[1756336145834,0.0896798,111500.0,111490.0,0.81455825]
[1756336146342,0.1130898,111500.0,111490.0,0.81455825]
[1756336147439,0.2312398,111500.0,111490.0,0.81455825]
[1756336147644,0.2497998,111500.0,111490.0,1.64899825]
[1756336149143,0.2497998,111500.0,111490.0,1.64907825]
[1756336150537,0.2497998,111500.0,111490.0,1.64883825]
[1756336151144,0.2497998,111500.0,111490.0,1.55879625]
[1756336152243,0.2497998,111500.0,111490.0,0.72487625]
[1756336152548,0.2497998,111500.0,111490.0,1.55887625]
[1756336154448,0.2312398,111500.0,111490.0,1.55887625]
[1756336154642,0.2312398,111500.0,111490.0,1.64803825]
[1756336159549,0.2332398,111500.0,111490.0,1.64803825]
[1756336161352,0.1641298,111500.0,111490.0,1.64803825]
[1756336162345,0.1985698,111500.0,111490.0,1.64803825]
[1756336162651,0.2332398,111500.0,111490.0,1.64803825]
[1756336164149,0.1641298,111500.0,111490.0,1.64803825]
[1756336165145,0.1985698,111500.0,111490.0,1.64803825]
[1756336165346,0.1369798,111500.0,111490.0,1.64803825]
[1756336165546,0.1641298,111500.0,111490.0,1.64803825]
[1756336166463,0.1985698,111500.0,111490.0,1.64803825]
[1756336167054,0.2332398,111500.0,111490.0,1.64803825]
[1756336168655,0.1369798,111500.0,111490.0,1.64803825]
[1756336169754,0.1359798,111500.0,111490.0,1.64803825]
[1756336169957,0.1632498,111500.0,111490.0,1.64803825]
[1756336170849,0.1980898,111500.0,111490.0,1.64803825]
[1756336171251,0.1632498,111500.0,111490.0,1.64803825]
[1756336171655,0.1642498,111500.0,111490.0,1.64803825]
[1756336172159,0.1369798,111500.0,111490.0,1.64803825]
[1756336172759,0.1642498,111500.0,111490.0,1.64803825]
[1756336173254,0.1642498,111500.0,111490.0,1.335212]
[1756336173459,0.2344698,111500.0,111490.0,1.56981812]
[1756336178261,0.2540298,111500.0,111490.0,0.73633812]
[1756336178462,0.2540298,111500.0,111490.0,1.56793812]
[1756336178662,0.2540298,111500.0,111490.0,1.47825612]
[1756336179059,0.48863592,111500.0,111490.0,1.47825612]
[1756336182262,0.0916798,111500.0,111490.0,1.56793812]
[1756336182466,0.0916798,111500.0,111490.0,1.80254424]
[1756336182759,0.0916798,111500.0,111490.0,1.56793812]
[1756336185067,0.02201,111500.0,111490.0,1.56793812]
[1756336185361,0.1116898,111500.0,111490.0,1.56793812]
[1756336189864,0.1389598,111500.0,111490.0,1.56793812]
[1756336193668,0.2091798,111500.0,111490.0,1.56793812]
[1756336194665,0.2324598,111500.0,111490.0,0.73633812]
[1756336194866,0.2324598,111500.0,111490.0,1.56785812]
[1756336195366,0.05225732,111500.0,111490.0,1.60116812]
[1756336196268,0.14193712,111500.0,111490.0,1.60116812]
[1756336196664,0.1129598,111500.0,111490.0,1.60116812]
[1756336197169,0.0896798,111500.0,111490.0,1.60116812]
[1756336200259,0.1232098,111500.0,111490.0,1.60116812]
[1756336200670,0.0896798,111500.0,111490.0,1.60116812]
[1756336202066,0.0896798,111500.0,111490.0,0.79115812]
[1756336202067,0.1345498,111500.0,111490.0,0.79115812]
[1756336202262,0.1345498,111500.0,111490.0,0.70147612]
[1756336202567,0.48512592,111500.0,111490.0,1.53287612]
[1756336202767,0.36915592,111500.0,111490.0,1.53287612]
[1756336203069,0.40268592,111500.0,111490.0,1.53287612]
[1756336203570,0.36915592,111500.0,111490.0,1.53287612]
[1756336203770,0.1232098,111500.0,111490.0,1.3879521]
[1756336204071,0.1232098,111500.0,111490.0,1.62255822]
[1756336204270,0.1232098,111500.0,111490.0,1.3879521]
[1756336204464,0.0896798,111500.0,111490.0,1.62255822]
[1756336208062,0.0896798,111500.0,111490.0,1.85716434]
[1756336209973,0.0896798,111500.0,111490.0,1.62255822]
[1756336210572,0.1345498,111500.0,111490.0,0.46687]
[1756336210777,0.2030398,111500.0,111490.0,1.29819]
[1756336211070,0.2030398,111500.0,111490.0,1.53279612]
[1756336211977,0.2040398,111500.0,111490.0,1.53279612]
[1756336212477,0.45837592,111500.0,111490.0,1.53279612]
[1756336212677,0.48629592,111500.0,111490.0,1.53279612]
[1756336213179,0.45837592,111500.0,111490.0,1.53279612]
[1756336214176,0.73629592,111500.0,111490.0,0.43356]
[1756336214375,0.250692,111490.0,111480.0,1.34621]
[1756336214576,1.08990424,111490.0,111480.0,0.92265]
[1756336214780,1.11636324,111490.0,111480.0,0.92265]
[1756336215179,1.08990424,111490.0,111480.0,0.92265]
[1756336215377,1.08990424,111490.0,111480.0,0.90114]
[1756336215578,1.08990424,111490.0,111480.0,0.87815]
[1756336216481,0.85529812,111490.0,111480.0,0.90114]
[1756336216682,0.85629812,111490.0,111480.0,0.90114]
[1756336216875,0.85629812,111490.0,111480.0,0.9336]
[1756336217276,0.85629812,111490.0,111480.0,0.87815]
[1756336217477,0.85629812,111490.0,111480.0,0.90114]
[1756336217684,0.85629812,111490.0,111480.0,0.9336]
[1756336218277,0.85629812,111490.0,111480.0,0.95511]
[1756336218786,1.09090424,111490.0,111480.0,0.92265]
[1756336219078,0.85629812,111490.0,111480.0,0.92265]
[1756336220681,0.85629812,111490.0,111480.0,0.95511]
[1756336222283,0.85629812,111490.0,111480.0,0.98521]
[1756336222887,0.42484812,111490.0,111480.0,1.21981612]
[1756336223083,0.45837812,111490.0,111480.0,1.21981612]
[1756336223784,0.48629812,111490.0,111480.0,1.21981612]
[1756336227493,0.80629812,111490.0,111480.0,1.21981612]
[1756336236212,0.251692,111490.0,111480.0,0.98521]
[1756336236413,0.81629812,111490.0,111480.0,0.98505]
[1756336237108,0.81629812,111490.0,111480.0,0.98501]
[1756336242117,0.581692,111490.0,111480.0,0.98501]
[1756336242418,0.81629812,111490.0,111480.0,0.98501]
[1756336243113,1.09358678,111490.0,111480.0,0.95255]
[1756336243319,1.09358678,111490.0,111480.0,0.98443]
[1756336246218,0.85898066,111490.0,111480.0,0.98443]
[1756336246408,1.09358678,111490.0,111480.0,0.98443]
[1756336246720,0.85898066,111490.0,111480.0,0.98443]
[1756336246918,0.68257678,111490.0,111480.0,1.21903612]
[1756336247118,0.68257678,111490.0,111480.0,2.06444224]
[1756336247119,0.44797066,111490.0,111480.0,2.06444224]
[1756336247818,0.44799714,111490.0,111480.0,2.06444224]
[1756336250213,0.44799714,111490.0,111480.0,2.15413234]
[1756336251621,0.44799714,111490.0,111480.0,2.06444224]
[1756336251921,0.420682,111490.0,111480.0,2.06444224]
[1756336252621,0.44797263,111490.0,111480.0,2.06444224]
[1756336253011,0.49357263,111490.0,111480.0,0.76415]
[1756336253217,0.49357263,111490.0,111480.0,1.34495]
[1756336253218,0.76787812,111490.0,111480.0,1.34495]
[1756336253418,0.76787812,111490.0,111480.0,1.81416224]
[1756336253922,0.73406812,111490.0,111480.0,1.81416224]
[1756336254523,0.420682,111490.0,111480.0,1.81416224]
[1756336261724,0.420682,111490.0,111480.0,1.90385234]
[1756336262723,0.170682,111490.0,111480.0,1.90385234]
[1756336262922,0.090682,111490.0,111480.0,1.90385234]
[1756336264333,0.089682,111490.0,111480.0,1.90385234]
[1756336268524,0.089682,111490.0,111480.0,0.98336224]
[1756336268723,0.089682,111490.0,111480.0,1.34451]
[1756336268724,0.48256812,111490.0,111480.0,1.34451]
[1756336269026,0.0896901,111480.0,111470.0,0.45197]
[1756336269232,1.08718234,111480.0,111470.0,1.34504]
[1756336269527,1.33718234,111480.0,111470.0,0.15392]
[1756336269731,1.69798234,111480.0,111470.0,0.8771]
[1756336270031,1.69798234,111480.0,111470.0,0.92235]
[1756336270424,1.69798234,111480.0,111470.0,0.95665]
[1756336270928,1.33718234,111480.0,111470.0,0.95665]
[1756336271127,1.33718234,111480.0,111470.0,0.04678]
[1756336271434,0.2479781,111470.0,111460.0,0.40778]
[1756336271626,0.94106196,111470.0,111460.0,1.27216]
[1756336271926,0.94106196,111470.0,111460.0,0.46947]
[1756336272134,0.94106196,111470.0,111460.0,1.345]
[1756336272931,0.2479781,111470.0,111460.0,1.345]
[1756336273235,0.94106196,111470.0,111460.0,0.9862]
[1756336273826,1.01379881,111470.0,111460.0,0.9862]
[1756336274022,0.32071495,111470.0,111460.0,0.9862]
[1756336274227,0.32071495,111470.0,111460.0,0.9519]
[1756336274228,1.01379881,111470.0,111460.0,0.9519]
[1756336274534,1.01379881,111470.0,111460.0,0.9862]
[1756336274834,0.32071495,111470.0,111460.0,0.9862]
[1756336275034,1.00379881,111470.0,111460.0,0.9862]
[1756336275727,0.60145881,111470.0,111460.0,0.9862]
[1756336275927,0.32071495,111470.0,111460.0,0.9862]
[1756336276126,0.29317495,111470.0,111460.0,0.9862]
[1756336277029,0.30984694,111470.0,111460.0,0.9862]
[1756336277227,0.33738694,111470.0,111460.0,0.9862]
[1756336277532,0.69738694,111470.0,111460.0,0.9862]
[1756336278434,0.66984694,111470.0,111460.0,0.9862]
[1756336278629,0.69738694,111470.0,111460.0,0.9862]
[1756336279736,0.63750694,111470.0,111460.0,1.29928386]
[1756336279934,0.66984694,111470.0,111460.0,1.29928386]
[1756336280136,0.66984694,111470.0,111460.0,0.9862]
[1756336280530,0.69738694,111470.0,111460.0,0.9862]
[1756336286140,0.58491694,111470.0,111460.0,1.66008386]
[1756336286533,0.22491694,111470.0,111460.0,1.66008386]
[1756336286732,0.29035694,111470.0,111460.0,1.66008386]
[1756336286932,0.66035694,111470.0,111460.0,1.66008386]
[1756336287133,0.68789694,111470.0,111460.0,1.347]
[1756336288236,0.66035694,111470.0,111460.0,1.347]
[1756336288437,0.9734408,111470.0,111460.0,1.347]
[1756336288636,0.29035694,111470.0,111460.0,1.347]
[1756336289038,0.62035694,111470.0,111460.0,1.347]
[1756336290133,0.62035694,111470.0,111460.0,1.66008386]
[1756336291040,0.62035694,111470.0,111460.0,1.347]
[1756336291639,0.62035694,111470.0,111460.0,1.66008386]
[1756336291839,0.64888694,111470.0,111460.0,1.66008386]
[1756336292542,0.31888694,111470.0,111460.0,1.347]
[1756336293045,0.6500308,111470.0,111460.0,1.31238]
[1756336293245,1.0100308,111470.0,111460.0,1.31943]
[1756336293446,1.0100308,111470.0,111460.0,1.34612]
[1756336295748,1.0100308,111470.0,111460.0,0.95064]
[1756336295951,1.0100308,111470.0,111460.0,0.98528]
[1756336296350,1.0100308,111470.0,111460.0,0.95859]
[1756336296950,1.0100308,111470.0,111460.0,0.98528]
[1756336301158,1.0100308,111470.0,111460.0,0.9506]
[1756336301357,1.03728417,111470.0,111460.0,0.98524]
[1756336302362,0.72420031,111470.0,111460.0,0.98524]
[1756336302565,1.03728417,111470.0,111460.0,0.98524]
[1756336303252,0.76715016,111470.0,111460.0,0.98524]
[1756336303564,0.90113826,111470.0,111460.0,0.98524]
[1756336304262,0.90213826,111470.0,111460.0,0.98324]
[1756336304463,0.90313826,111470.0,111460.0,0.98324]
[1756336305166,0.66833724,111470.0,111460.0,0.98324]
[1756336305366,0.90313826,111470.0,111460.0,0.98324]
[1756336309869,0.87079826,111470.0,111460.0,1.21804102]
[1756336310168,0.49534525,111470.0,111460.0,2.15334814]
[1756336310365,0.46809188,111470.0,111460.0,2.15334814]
[1756336311366,0.46609188,111470.0,111460.0,1.99672682]
[1756336312972,0.4829526,111470.0,111460.0,1.99672682]
[1756336313169,0.4829526,111470.0,111460.0,1.74672682]
[1756336313573,0.5522226,111470.0,111460.0,1.34404]
[1756336313775,0.6431026,111470.0,111460.0,1.65690072]
[1756336313976,0.6431026,111470.0,111460.0,1.34392]
[1756336314974,0.6441026,111470.0,111460.0,1.34392]
[1756336316075,0.6441026,111470.0,111460.0,1.34292]
[1756336316868,0.6155726,111470.0,111460.0,1.34292]
[1756336317374,0.5282426,111470.0,111460.0,1.34292]
[1756336317576,0.5056626,111470.0,111460.0,1.4326262]
[1756336317873,0.5056626,111470.0,111460.0,1.74560692]
[1756336319479,0.48880188,111470.0,111460.0,1.74560692]
[1756336320170,0.48880188,111470.0,111460.0,1.4326262]
[1756336320371,0.48880188,111470.0,111460.0,1.74560692]
[1756336320676,0.46709188,111470.0,111460.0,1.74560692]
[1756336322668,0.20044378,111470.0,111460.0,2.03560692]
[1756336322874,0.001,111470.0,111460.0,2.03560692]
[1756336323478,0.0001,111480.0,111470.0,0.40267882]
[1756336323669,0.13537784,111490.0,111480.0,0.0896901]
[1756336323968,0.13527784,111490.0,111480.0,1.75311082]
[1756336326382,0.13527784,111490.0,111480.0,1.75436082]
[1756336327583,0.10749784,111490.0,111480.0,1.75436082]
[1756336327775,0.0896871,111490.0,111480.0,2.31734154]
[1756336327975,0.1175597,111500.0,111490.0,0.089682]
[1756336328179,0.1174597,111500.0,111490.0,0.92672272]
[1756336329771,0.0896797,111500.0,111490.0,0.92672272]
[1756336330378,0.1174597,111500.0,111490.0,0.92672272]
[1756336331685,0.2472997,111500.0,111490.0,1.75616272]
[1756336333186,0.2472997,111500.0,111490.0,1.443182]
[1756336333484,0.2472997,111500.0,111490.0,1.75616272]
[1756336333881,0.2472997,111500.0,111490.0,0.92672272]
[1756336334081,0.2472997,111500.0,111490.0,1.75608272]
[1756336334287,0.2142697,111500.0,111490.0,1.75608272]
[1756336335182,0.2142697,111500.0,111490.0,0.92672272]
[1756336335384,0.2472997,111500.0,111490.0,1.75604272]
[1756336337490,0.2472997,111500.0,111490.0,0.83704072]
[1756336337684,0.2472997,111500.0,111490.0,1.35334]
[1756336337685,0.81028042,111500.0,111490.0,1.35334]
[1756336337990,0.4972997,111500.0,111490.0,1.35334]
[1756336338286,0.4118997,111500.0,111490.0,1.75600272]
[1756336338490,0.4449297,111500.0,111490.0,1.75600272]
[1756336338788,0.4780497,111500.0,111490.0,1.75600272]
[1756336339783,0.1174597,111500.0,111490.0,1.75600272]
[1756336340290,0.1836097,111500.0,111490.0,1.75600272]
[1756336341685,0.1505797,111500.0,111490.0,1.75600272]
[1756336341892,0.1174597,111500.0,111490.0,1.75600272]
[1756336344495,0.1836097,111500.0,111490.0,1.443022]
[1756336344694,0.1836097,111500.0,111490.0,1.75600272]
[1756336345898,0.1174597,111500.0,111490.0,1.75600272]
[1756336347700,0.0896797,111500.0,111490.0,2.00600272]
[1756336347993,0.13413086,111510.0,111500.0,0.092934]
[1756336347994,0.11755,111510.0,111500.0,0.092934]
[1756336348195,0.11745,111510.0,111500.0,0.92671472]
[1756336349988,0.1401,111510.0,111500.0,0.92671472]
[1756336350699,0.11745,111510.0,111500.0,0.92671472]
[1756336354303,0.14002,111510.0,111500.0,0.92671472]
[1756336354504,0.2475,111510.0,111500.0,1.442614]
[1756336354800,0.2475,111510.0,111500.0,1.75559472]
[1756336355704,0.16166,111510.0,111500.0,1.75559472]
[1756336355998,0.22848,111510.0,111500.0,1.442614]
[1756336356204,0.16166,111510.0,111500.0,0.92671472]
[1756336356408,0.16166,111510.0,111500.0,1.75555472]
[1756336356409,0.2475,111510.0,111500.0,1.75555472]
[1756336358709,0.18068,111510.0,111500.0,1.75555472]
[1756336359007,0.2153,111510.0,111500.0,1.75555472]
[1756336359800,0.18068,111510.0,111500.0,1.75555472]
[1756336360004,0.11745,111510.0,111500.0,1.75555472]
[1756336365115,0.11745,111510.0,111500.0,1.66588072]
[1756336365410,0.22848,111510.0,111500.0,1.82179948]
[1756336365819,0.22848,111510.0,111500.0,1.3527]
[1756336366015,0.22848,111510.0,111500.0,1.82179948]
[1756336366815,1.08204974,111510.0,111500.0,0.5208]
[1756336367010,1.3437214,111510.0,111500.0,1.3494]
[1756336367315,1.10917166,111510.0,111500.0,1.3494]
[1756336367615,1.10917166,111510.0,111500.0,0.5208]
[1756336367813,0.87462192,111510.0,111500.0,1.3494]
[1756336368006,1.10917166,111510.0,111500.0,1.3494]
[1756336368311,1.08204974,111510.0,111500.0,1.3494]
[1756336369117,1.08304974,111510.0,111500.0,1.3494]
[1756336369319,1.16136426,111510.0,111500.0,1.3494]
[1756336369613,1.16136426,111510.0,111500.0,0.9886]
[1756336369813,1.18849129,111510.0,111500.0,0.9886]
[1756336370214,1.16136426,111510.0,111500.0,0.9886]
[1756336371420,1.16036426,111510.0,111500.0,0.9886]
[1756336371623,1.16136426,111510.0,111500.0,0.9886]
[1756336372419,0.99034583,111510.0,111500.0,0.9886]
[1756336372717,0.99034583,111510.0,111500.0,1.03237]
[1756336373019,1.44081603,111510.0,111500.0,1.03237]
[1756336373222,1.19081603,111510.0,111500.0,1.03237]
[1756336374319,0.83001603,111510.0,111500.0,1.0646]
[1756336374521,0.85993603,111510.0,111500.0,1.0646]
[1756336377322,0.85993603,111510.0,111500.0,1.09214]
[1756336377914,0.85993603,111510.0,111500.0,1.0646]
[1756336378118,0.85993603,111510.0,111500.0,1.09214]
[1756336380922,0.90414603,111510.0,111500.0,1.10606]
[1756336383123,0.90414603,111510.0,111500.0,0.27758]
[1756336383324,0.90414603,111510.0,111500.0,1.10606]
[1756336383525,0.90414603,111510.0,111500.0,1.10602]
[1756336384529,0.90414603,111510.0,111500.0,0.27758]
[1756336384720,1.51494603,111510.0,111500.0,0.1354255]
[1756336385026,0.153944,111500.0,111490.0,0.82864]
[1756336385324,0.92187826,111500.0,111490.0,0.82844]
[1756336385917,0.92187826,111500.0,111490.0,0.90661]
[1756336387422,0.92187826,111500.0,111490.0,0.93972]
[1756336388218,0.92287826,111500.0,111490.0,0.93972]
[1756336388923,1.28367826,111500.0,111490.0,0.93972]
[1756336390024,1.28367826,111500.0,111490.0,0.07778]
[1756336390219,1.28367826,111500.0,111480.0,1.28617]
[1756336390220,0.2490221,111490.0,111480.0,1.28617]
[1756336390426,0.91188636,111490.0,111480.0,1.36947]
[1756336391728,0.91188636,111490.0,111480.0,1.00867]
[1756336393031,1.27268636,111490.0,111480.0,1.00867]
[1756336393326,1.27268636,111490.0,111480.0,0.92311]
[1756336393534,1.27268636,111490.0,111480.0,0.89947]
[1756336394126,1.27268636,111490.0,111480.0,0.92311]
[1756336394431,1.27268636,111490.0,111480.0,0.95661]
[1756336394726,1.27268636,111490.0,111480.0,0.92311]
[1756336395030,1.27268636,111490.0,111480.0,0.18023]
[1756336395231,1.27268636,111490.0,111480.0,0.12817]
[1756336396031,1.29968127,111490.0,111480.0,0.09467]
[1756336396225,1.54968127,111490.0,111480.0,0.0216972]
[1756336396433,0.2490301,111480.0,111470.0,0.13043]
[1756336396729,1.63061415,111480.0,111470.0,0.13023]
[1756336397127,1.31774989,111480.0,111470.0,0.13023]
[1756336397329,1.29075982,111480.0,111470.0,0.09712]
[1756336397525,0.1956582,111470.0,111460.0,0.09693]
[1756336397730,1.25270246,111470.0,111460.0,0.92513]
[1756336398730,1.25270246,111470.0,111460.0,0.92613]
[1756336399221,1.25270246,111470.0,111460.0,0.92813]
[1756336399426,0.92270246,111470.0,111460.0,0.95591]
[1756336399626,1.26270246,111470.0,111460.0,0.98661]
[1756336400031,0.92270246,111470.0,111460.0,0.98661]
[1756336402734,0.99278442,111470.0,111460.0,0.98661]
[1756336404033,1.34278442,111470.0,111460.0,0.98661]
[1756336407738,0.98198442,111470.0,111460.0,0.98661]
[1756336407928,1.34278442,111470.0,111460.0,0.98661]
[1756336408329,1.36962753,111470.0,111460.0,0.98661]
[1756336410740,1.05676327,111470.0,111460.0,0.98661]
[1756336410931,1.36962753,111470.0,111460.0,0.98661]
[1756336414341,1.36962753,111470.0,111460.0,0.95883]
[1756336414541,1.05676327,111470.0,111460.0,0.95883]
[1756336414739,1.36962753,111470.0,111460.0,0.95883]
[1756336415344,1.29156349,111470.0,111460.0,0.98606]
[1756336418037,1.29156349,111470.0,111460.0,0.15766]
[1756336418245,1.29156349,111470.0,111460.0,0.98598]
[1756336423749,1.29156349,111470.0,111460.0,0.95875]
[1756336424850,1.29156349,111470.0,111460.0,0.13043]
[1756336425048,1.29156349,111470.0,111460.0,0.95863]
[1756336425847,1.29156349,111470.0,111460.0,0.95663]
[1756336426642,1.29156349,111470.0,111460.0,0.95563]
[1756336427351,1.29156349,111470.0,111460.0,1.21766022]
[1756336430150,1.05676327,111470.0,111460.0,1.21766022]
[1756336430351,0.93076349,111470.0,111460.0,1.57846022]
[1756336430552,0.66414327,111470.0,111460.0,1.81326044]
[1756336430751,0.58917327,111470.0,111460.0,2.06326044]
[1756336430952,0.82397349,111470.0,111460.0,2.06326044]
[1756336431353,0.88871349,111470.0,111460.0,1.59366]
[1756336431651,0.88871349,111470.0,111460.0,1.82846022]
[1756336433053,0.88871349,111470.0,111460.0,1.57846022]
[1756336434050,0.65391327,111470.0,111460.0,1.57846022]
[1756336434444,0.88871349,111470.0,111460.0,1.57846022]
[1756336440556,0.88871349,111470.0,111460.0,0.75026022]
[1756336440557,0.92969349,111470.0,111460.0,0.75026022]
[1756336440753,0.92969349,111470.0,111460.0,1.57814022]
[1756336444550,0.75236081,111470.0,111460.0,0.75026022]
[1756336444754,0.8152159,111470.0,111460.0,1.57806022]
[1756336444955,0.8368859,111470.0,111460.0,0.75026022]
[1756336445155,0.8368859,111470.0,111460.0,1.57806022]
[1756336446457,0.8368859,111470.0,111460.0,0.75026022]
[1756336446653,0.8643559,111470.0,111460.0,1.57806022]
[1756336447262,0.8643559,111470.0,111460.0,0.75026022]
[1756336447463,0.8643559,111470.0,111460.0,1.57802022]
[1756336451161,0.8643559,111470.0,111460.0,1.34322]
[1756336451368,0.8643559,111470.0,111460.0,1.57802022]
[1756336454960,0.8643559,111470.0,111460.0,1.57786022]
[1756336455970,0.8643559,111470.0,111460.0,0.75026022]
[1756336456173,0.8643559,111470.0,111460.0,1.57782022]
[1756336460274,0.62955568,111470.0,111460.0,1.57782022]
[1756336460469,0.8641459,111470.0,111460.0,1.81262044]
[1756336460974,0.8641459,111470.0,111460.0,0.98506044]
[1756336461175,0.8641459,111470.0,111460.0,1.34282]
[1756336461377,0.8641459,111470.0,111460.0,1.57762022]
[1756336461783,0.62934568,111470.0,111460.0,1.57762022]
[1756336461969,0.8641459,111470.0,111460.0,1.57762022]
[1756336467881,0.8641459,111470.0,111460.0,0.75026022]
[1756336468177,0.8641459,111470.0,111460.0,1.57746022]
[1756336470182,0.62934568,111470.0,111460.0,1.57746022]
[1756336470383,0.8641459,111470.0,111460.0,1.57746022]
[1756336471277,0.8641459,111470.0,111460.0,0.75026022]
[1756336471577,0.8641459,111470.0,111460.0,0.98419]
[1756336471578,1.37492089,111470.0,111460.0,0.98419]
[1756336471781,1.14012067,111470.0,111460.0,0.98419]
[1756336472376,1.14112067,111470.0,111460.0,0.98419]
[1756336472779,0.95525169,111470.0,111460.0,0.98419]
[1756336473178,0.95625169,111470.0,111460.0,0.98419]
[1756336473881,1.02707989,111470.0,111460.0,0.98419]
[1756336477482,0.0897063,111460.0,111450.0,0.4526]
[1756336477681,0.48588652,111460.0,111450.0,1.72910022]
[1756336479179,1.06068674,111460.0,111450.0,1.4943]
[1756336479484,0.72068674,111460.0,111450.0,1.4943]
[1756336479674,0.73883367,111460.0,111450.0,1.4943]
[1756336479877,0.73883367,111460.0,111450.0,1.72910022]
[1756336480577,0.75182241,111460.0,111450.0,1.72910022]
[1756336481078,0.75282241,111460.0,111450.0,1.72910022]
[1756336481479,0.75382241,111460.0,111450.0,1.72910022]
[1756336482185,0.75382241,111460.0,111450.0,1.4943]
[1756336482383,1.35382241,111460.0,111450.0,0.27584]
[1756336482587,0.1320043,111450.0,111440.0,0.51754]
[1756336482884,1.09069474,111450.0,111440.0,0.89178]
[1756336483087,1.13288492,111450.0,111440.0,0.89178]
[1756336483390,1.10589452,111450.0,111440.0,0.89178]
[1756336483586,1.10589452,111450.0,111440.0,0.98338]
[1756336484089,1.34069474,111450.0,111440.0,0.89178]
[1756336484292,1.34069474,111450.0,111440.0,0.86931]
[1756336484784,1.34069474,111450.0,111440.0,0.86927]
[1756336485578,1.70149474,111450.0,111440.0,0.86927]
[1756336486588,1.70149474,111450.0,111440.0,0.89725]
[1756336486784,1.70149474,111450.0,111440.0,0.92795]
[1756336486982,1.70149474,111450.0,111440.0,0.96087]
[1756336487984,1.70149474,111450.0,111440.0,0.92795]
[1756336488179,1.70149474,111450.0,111440.0,0.89725]
[1756336488792,1.70149474,111450.0,111440.0,0.86927]
[1756336489287,1.45149474,111450.0,111440.0,0.04247]
[1756336489590,1.45149474,111450.0,111440.0,0.86919]
[1756336489990,1.45149474,111450.0,111440.0,0.89717]
[1756336490191,1.45149474,111450.0,111440.0,0.96079]
[1756336490590,1.45149474,111450.0,111440.0,0.98326]
[1756336491584,1.45149474,111450.0,111440.0,0.98322]
[1756336492898,2.27817474,111450.0,111440.0,0.98322]
[1756336495002,1.45149474,111450.0,111440.0,0.98322]
[1756336495300,2.27809474,111450.0,111440.0,0.98322]
[1756336495502,1.45149474,111450.0,111440.0,0.98322]
[1756336495702,2.30563226,111450.0,111440.0,0.98322]
[1756336496400,0.1552723,111440.0,111410.0,0.03292]
[1756336496705,1.09981496,111420.0,111410.0,0.15654]
[1756336496901,1.42362574,111420.0,111410.0,0.15654]
[1756336498103,1.45759574,111420.0,111410.0,0.0979475]
[1756336498303,0.1542959,111410.0,111400.0,0.88203]
[1756336498597,1.17372612,111410.0,111400.0,0.9244]
[1756336499103,1.18677111,111410.0,111400.0,0.9244]
[1756336500205,0.87677111,111410.0,111400.0,0.9598]
[1756336500500,1.23677111,111410.0,111400.0,0.9598]
[1756336500806,0.26017089,111410.0,111400.0,1.22245022]
[1756336501002,0.56766816,111410.0,111400.0,1.22245022]
[1756336501304,0.64623783,111410.0,111400.0,0.98765]
[1756336501605,0.64623783,111410.0,111400.0,0.98865]
[1756336501803,1.35703783,111410.0,111400.0,0.98865]
[1756336502806,1.35703783,111410.0,111400.0,0.10134]
[1756336503104,1.35703783,111410.0,111400.0,0.9085]
[1756336503409,1.38703783,111410.0,111400.0,0.11516]
[1756336504707,1.07366794,111410.0,111400.0,0.13333]
[1756336505008,1.35703783,111410.0,111400.0,0.13333]
[1756336505207,1.38450845,111410.0,111400.0,0.13333]
[1756336505700,1.39450845,111410.0,111400.0,0.13333]
[1756336505899,2.22102845,111410.0,111400.0,0.10015]
[1756336506207,2.22102845,111410.0,111400.0,0.04758]
[1756336506595,2.22102845,111410.0,111400.0,0.02511]
[1756336506795,0.1842339,111400.0,111390.0,0.07442]
[1756336507104,0.251702,111390.0,111380.0,0.04617]
[1756336507302,1.29587189,111390.0,111380.0,0.13182]
[1756336507902,0.612502,111390.0,111380.0,0.15967]
[1756336508105,1.29487189,111390.0,111380.0,0.15967]
[1756336508305,1.29487189,111390.0,111380.0,0.16067]
[1756336508808,1.27487189,111390.0,111380.0,0.16067]
[1756336509007,1.27487189,111390.0,111380.0,0.16167]
[1756336509207,1.30232297,111390.0,111380.0,0.16167]
[1756336510207,1.30232297,111390.0,111380.0,0.13382]
[1756336511007,1.30232297,111390.0,111380.0,0.002]
[1756336511209,0.2517101,111380.0,111370.0,0.0001]
[1756336511504,0.1871582,111370.0,111360.0,2.96112]
[1756336511705,0.50052809,111370.0,111360.0,2.98887]
[1756336511907,0.82052809,111370.0,111360.0,2.98887]
[1756336512108,0.50052809,111370.0,111360.0,2.98887]
[1756336512512,0.1871582,111370.0,111360.0,2.98887]
[1756336512905,0.50052809,111370.0,111360.0,2.98887]
[1756336513402,0.50052809,111370.0,111360.0,3.23887]
[1756336514099,0.95253522,111370.0,111360.0,1.23627]
[1756336514314,0.95253522,111370.0,111360.0,1.20842]
[1756336514810,0.95253522,111370.0,111360.0,1.21042]
[1756336515007,0.95253522,111370.0,111360.0,0.13382]
[1756336515304,0.95253522,111370.0,111360.0,0.95942]
[1756336515710,0.95253522,111370.0,111360.0,0.95842]
[1756336517306,0.95253522,111370.0,111360.0,0.04607]
[1756336517509,0.95253522,111370.0,111360.0,0.87271]
[1756336517706,1.06719755,111370.0,111360.0,0.95846]